[Event "DVM U14 2024"]
[Site "Heidelberg"]
[Date "2024.12.29"]
[Round "5"]
[White "Popitz, Paul"]
[Black "Kovalenko, Andrii"]
[Result "1-0"]
[ECO "C50"]
[WhiteElo "1449"]
[BlackElo "1211"]
[Annotator "NA"]
[PlyCount "129"]
[EventDate "2024.12.23"]
[EventType "team-tourn"]
[EventRounds "7"]
[EventCountry "GER"]
[SourceTitle "playchess.com"]
[Source "ChessBase"]
[SourceQuality "1"]
[TimeControl "40/5400+30:1800+30"]

1. e4 {[%emt 0:00:04]} e5 {[%emt 0:00:04]} 2. Nf3 {[%emt 0:00:05]} Nc6 {[%emt 0:00:00]} 3. Bc4 {[%emt 0:00:08]} Nf6 {[%emt 0:00:04]} 4. d3 {[%emt 0:00:09]} Bc5 {[%emt 0:00:04]} 5. O-O {[%emt 0:00:12]} d6 {[%emt 0:00:02]} 6. a4 {[%emt 0:00:12]} Bg4 {[%emt 0:00:05]} 7. c3 {[%emt 0:00:16]} a5 {[%emt 0:00:30]} 8. Be3 {[%emt 0:01:17]} Nd7 {[%emt 0:02:21]} 9. Nbd2 {[%emt 0:05:26]} h6 {[%emt 0:00:34]} 10. Re1 {[%emt 0:00:32]} O-O {[%emt 0:00:25]} 11. Nf1 {[%emt 0:01:02]} Qf6 {[%emt 0:01:29]} 12. Ng3 {[%emt 0:05:16]} Bxf3 {[%emt 0:02:08]} 13. Qxf3 {[%emt 0:00:41]} Qxf3 {[%emt 0:00:14]} 14. gxf3 {[%emt 0:00:10]} Ba7 {[%emt 0:00:53]} 15. Kh1 {[%emt 0:02:07]} Nb6 {[%emt 0:00:23]} 16. Bb3 {[%emt 0:00:53]} Rfe8 {[%emt 0:01:31]} 17. Rg1 {[%emt 0:01:08]} Ne7 {[%emt 0:01:03]} 18. Nh5 {[%emt 0:01:54]} g6 {[%emt 0:00:32]} 19. Nf6+ {[%emt 0:00:25]} Kg7 {[%emt 0:00:54]} 20. Nxe8+ {[%emt 0:00:10]} Rxe8 {[%emt 0:00:05]} 21. Rg3 {[%emt 0:04:57]} c6 {[%emt 0:02:45]} 22. f4 {[%emt 0:04:20]} exf4 {[%emt 0:01:51]} 23. Bxf4 {[%emt 0:00:11]} Nbc8 {[%emt 0:00:04]} 24. Be3 {[%emt 0:00:49]} Bb8 {[%emt 0:00:46]} 25. Rh3 {[%emt 0:04:39]} h5 {[%emt 0:00:17]} 26. Rg1 {[%emt 0:00:24]} d5 {[%emt 0:01:48]} 27. exd5 {[%emt 0:01:59]} Nxd5 {[%emt 0:00:07]} 28. Bxd5 {[%emt 0:00:11]} cxd5 {[%emt 0:00:04]} 29. Rxh5 {[%emt 0:00:19]} Ne7 {[%emt 0:02:09]} 30. Rh3 {[%emt 0:01:41]} Nf5 {[%emt 0:00:50]} 31. Rf3 {[%emt 0:01:10]} Nh4 {[%emt 0:00:48]} 32. Bd4+ {[%emt 0:00:14]} Be5 {[%emt 0:03:34]} 33. Re3 {[%emt 0:01:45]} f6 {[%emt 0:00:06]} 34. f4 {[%emt 0:00:53]} Nf5 {[%emt 0:00:31]} 35. Ree1 {[%emt 0:02:22]} Bxd4 {[%emt 0:02:08]} 36. Rxe8 {[%emt 0:00:14]} Bxg1 {[%emt 0:00:06]} 37. Kxg1 {[%emt 0:00:13]} Kf7 {[%emt 0:00:10]} 38. Rb8 {[%emt 0:00:25]} Nd6 {[%emt 0:01:14]} 39. Ra8 {[%emt 0:01:47]} b6 {[%emt 0:00:42]} 40. Rb8 {[%emt 0:00:15]} Ke7 {[%emt 0:01:13]} 41. Rxb6 {[%emt 0:30:16]} Kd7 {[%emt 0:30:17]} 42. Ra6 {[%emt 0:00:59]} Kc7 {[%emt 0:00:57]} 43. Rxa5 {[%emt 0:00:11]} Kc6 {[%emt 0:00:23]} 44. Ra6+ {[%emt 0:00:48]} Kc7 {[%emt 0:00:07]} 45. Rxd6 {[%emt 0:00:27]} Kxd6 {[%emt 0:00:05]} 46. b4 {[%emt 0:00:09]} Kc6 {[%emt 0:00:14]} 47. Kf2 {[%emt 0:00:13]} d4 {[%emt 0:00:29]} 48. c4 {[%emt 0:00:23]} f5 {[%emt 0:00:07]} 49. h4 {[%emt 0:00:09]} Kb6 {[%emt 0:00:06]} 50. h5 {[%emt 0:00:10]} gxh5 {[%emt 0:00:15]} 51. Kg3 {[%emt 0:00:06]} Kc6 {[%emt 0:00:11]} 52. Kh4 {[%emt 0:00:05]} Kb6 {[%emt 0:00:07]} 53. Kxh5 {[%emt 0:00:06]} Kc6 {[%emt 0:00:05]} 54. Kg6 {[%emt 0:00:05]} Kb6 {[%emt 0:00:08]} 55. Kxf5 {[%emt 0:00:07]} Kc7 {[%emt 0:00:07]} 56. Ke6 {[%emt 0:00:07]} Kd8 {[%emt 0:00:13]} 57. f5 {[%emt 0:00:08]} Ke8 {[%emt 0:00:08]} 58. f6 {[%emt 0:00:04]} Kd8 {[%emt 0:00:13]} 59. f7 {[%emt 0:00:10]} Kc7 {[%emt 0:00:08]} 60. f8=Q {[%emt 0:00:18]} Kb7 {[%emt 0:00:03]} 61. Qc5 {[%emt 0:00:26]} Ka6 {[%emt 0:00:16]} 62. Kd7 {[%emt 0:01:12]} Kb7 {[%emt 0:00:08]} 63. Qb5+ {[%emt 0:00:03]} Ka8 {[%emt 0:00:17]} 64. Kc7 {[%emt 0:00:06]} Ka7 {[%emt 0:00:02]} 65. Qa5# {[%emt 0:00:07]} 1-0

[Event "DVM U14 2024"]
[Site "Heidelberg"]
[Date "2024.12.29"]
[Round "5"]
[White "Arora, Ryan"]
[Black "Fridlin, Daniel"]
[Result "1-0"]
[ECO "E65"]
[WhiteElo "1390"]
[BlackElo "1789"]
[Annotator "NA"]
[PlyCount "95"]
[EventDate "2024.12.23"]
[EventType "team-tourn"]
[EventRounds "7"]
[EventCountry "GER"]
[SourceTitle "playchess.com"]
[Source "ChessBase"]
[SourceQuality "1"]
[TimeControl "40/5400+30:1800+30"]

1. d4 {[%emt 0:00:03]} Nf6 {[%emt 0:00:04]} 2. c4 {[%emt 0:00:05]} g6 {[%emt 0:00:05]} 3. Nf3 {[%emt 0:00:26]} Bg7 {[%emt 0:00:05]} 4. g3 {[%emt 0:00:02]} O-O {[%emt 0:00:10]} 5. Bg2 {[%emt 0:00:05]} d6 {[%emt 0:00:03]} 6. Nc3 {[%emt 0:00:49]} c5 {[%emt 0:01:32]} 7. e3 {[%emt 0:00:16]} Nc6 {[%emt 0:01:53]} 8. b3 {[%emt 0:02:46]} Bf5 {[%emt 0:05:05]} 9. Bb2 {[%emt 0:09:49]} a6 {[%emt 0:02:13]} 10. O-O {[%emt 0:05:02]} Rb8 {[%emt 0:03:15]} 11. d5 {[%emt 0:11:38]} Na5 {[%emt 0:04:50]} 12. Nd2 {[%emt 0:13:36]} b5 {[%emt 0:03:35]} 13. e4 {[%emt 0:06:20]} Bd7 {[%emt 0:02:31]} 14. cxb5 {[%emt 0:00:29]} axb5 {[%emt 0:00:26]} 15. f4 {[%emt 0:03:08]} Qb6 {[%emt 0:07:00]} 16. Kh1 {[%emt 0:02:03]} Ng4 {[%emt 0:03:17]} 17. Qf3 {[%emt 0:02:16]} b4 {[%emt 0:03:20]} 18. Nd1 {[%emt 0:00:04]} Rbc8 {[%emt 0:08:06]} 19. Bxg7 {[%emt 0:04:47]} Kxg7 {[%emt 0:00:10]} 20. h3 {[%emt 0:01:38]} Nf6 {[%emt 0:01:57]} 21. Nb2 {[%emt 0:00:57]} e6 {[%emt 0:04:34]} 22. Nbc4 {[%emt 0:05:48]} Nxc4 {[%emt 0:00:49]} 23. Nxc4 {[%emt 0:00:07]} Qc7 {[%emt 0:01:10]} 24. Nxd6 {[%emt 0:06:34]} Qxd6 {[%emt 0:02:56]} 25. e5 {[%emt 0:00:43]} Qe7 {[%emt 0:01:00]} 26. exf6+ {[%emt 0:02:57]} Qxf6 {[%emt 0:00:07]} 27. a4 {[%emt 0:02:07]} bxa3 {[%emt 0:02:20]} 28. Rxa3 {[%emt 0:00:08]} Ra8 {[%emt 0:02:12]} 29. Rxa8 {[%emt 0:00:22]} Rxa8 {[%emt 0:02:01]} 30. dxe6 {[%emt 0:00:06]} Rd8 {[%emt 0:01:53]} 31. exd7 {[%emt 0:00:05]} Rxd7 {[%emt 0:00:03]} 32. Qe3 {[%emt 0:03:57]} Qb6 {[%emt 0:02:07]} 33. Rc1 {[%emt 0:01:29]} Rc7 {[%emt 0:00:45]} 34. Qc3+ {[%emt 0:00:10]} f6 {[%emt 0:00:44]} 35. b4 {[%emt 0:00:09]} c4 {[%emt 0:01:04]} 36. Rd1 {[%emt 0:01:35]} Qe6 {[%emt 0:01:06]} 37. g4 {[%emt 0:02:30]} Qe2 {[%emt 0:03:02]} 38. Rd6 {[%emt 0:01:49]} Qe7 {[%emt 0:00:12]} 39. Rb6 {[%emt 0:01:09]} h6 {[%emt 0:06:07]} 40. g5 {[%emt 0:01:32]} hxg5 {[%emt 0:01:05]} 41. fxg5 {[%emt 0:30:07]} Kh7 {[%emt 0:30:56]} 42. Rxf6 {[%emt 0:00:53]} Rd7 {[%emt 0:02:12]} 43. Qxc4 {[%emt 0:02:47]} Qe1+ {[%emt 0:03:13]} 44. Rf1 {[%emt 0:02:07]} Qe5 {[%emt 0:00:39]} 45. Rf7+ {[%emt 0:00:45]} Rxf7 {[%emt 0:00:10]} 46. Qxf7+ {[%emt 0:00:02]} Kh8 {[%emt 0:00:12]} 47. Qf6+ {[%emt 0:00:34]} Qxf6 {[%emt 0:00:05]} 48. gxf6 {[%emt 0:00:06]} 1-0

[Event "DVM U14 2024"]
[Site "Heidelberg"]
[Date "2024.12.29"]
[Round "5"]
[White "Sosnicki, Adrian"]
[Black "Bodriyenko, Daniel"]
[Result "0-1"]
[ECO "C45"]
[WhiteElo "1259"]
[BlackElo "1694"]
[Annotator "NA"]
[PlyCount "74"]
[EventDate "2024.12.23"]
[EventType "team-tourn"]
[EventRounds "7"]
[EventCountry "GER"]
[SourceTitle "playchess.com"]
[Source "ChessBase"]
[SourceQuality "1"]
[TimeControl "40/5400+30:1800+30"]

1. e4 {[%emt 0:00:01]} e5 {[%emt 0:00:05]} 2. Nf3 {[%emt 0:00:04]} Nc6 {[%emt 0:00:05]} 3. d4 {[%emt 0:00:07]} exd4 {[%emt 0:00:15]} 4. Nxd4 {[%emt 0:00:30]} Bc5 {[%emt 0:00:36]} 5. Nxc6 {[%emt 0:03:05]} Qf6 {[%emt 0:00:42]} 6. Qf3 {[%emt 0:03:18]} Qxc6 {[%emt 0:00:57]} 7. Bd3 {[%emt 0:01:23]} d6 {[%emt 0:01:55]} 8. O-O {[%emt 0:01:11]} Be6 {[%emt 0:01:45]} 9. Nc3 {[%emt 0:01:15]} a6 {[%emt 0:00:19]} 10. Be3 {[%emt 0:01:00]} Ne7 {[%emt 0:01:40]} 11. a3 {[%emt 0:02:56]} O-O-O {[%emt 0:03:14]} 12. Ne2 {[%emt 0:06:56]} Bxe3 {[%emt 0:03:50]} 13. Qxe3 {[%emt 0:01:05]} d5 {[%emt 0:04:56]} 14. Nd4 {[%emt 0:01:34]} Qb6 {[%emt 0:04:22]} 15. c3 {[%emt 0:09:40]} Rhf8 {[%emt 0:05:01]} 16. b4 {[%emt 0:07:23]} dxe4 {[%emt 0:04:14]} 17. Bxe4 {[%emt 0:04:09]} Nd5 {[%emt 0:01:09]} 18. Qf3 {[%emt 0:04:57]} g6 {[%emt 0:10:27]} 19. Nxe6 {[%emt 0:04:56]} fxe6 {[%emt 0:02:15]} 20. Qh3 {[%emt 0:01:15]} Rf7 {[%emt 0:17:46]} 21. Rad1 {[%emt 0:02:42]} Kb8 {[%emt 0:01:32]} 22. c4 {[%emt 0:02:08]} Rdf8 {[%emt 0:02:25]} 23. c5 {[%emt 0:09:10]} Qc6 {[%emt 0:06:03]} 24. Qb3 {[%emt 0:02:47]} Rd7 {[%emt 0:03:41]} 25. Rd2 {[%emt 0:01:29]} Rfd8 {[%emt 0:01:23]} 26. a4 {[%emt 0:01:25]} a5 {[%emt 0:02:05]} 27. bxa5 {[%emt 0:05:47]} Qxc5 {[%emt 0:01:14]} 28. Rb1 {[%emt 0:01:32]} Qb4 {[%emt 0:05:27]} 29. Qc2 {[%emt 0:04:25]} Qxa5 {[%emt 0:02:53]} 30. Qc6 {[%emt 0:00:26]} b6 {[%emt 0:00:33]} 31. Rdb2 {[%emt 0:03:31]} Rd6 {[%emt 0:01:25]} 32. Qc4 {[%emt 0:02:21]} Nc3 {[%emt 0:01:58]} 33. h3 {[%emt 0:01:54]} Nxb1 {[%emt 0:00:17]} 34. Rxb1 {[%emt 0:00:06]} Rd1+ {[%emt 0:00:13]} 35. Rxd1 {[%emt 0:00:07]} Rxd1+ {[%emt 0:00:08]} 36. Kh2 {[%emt 0:00:13]} Qe5+ {[%emt 0:00:20]} 37. g3 {[%emt 0:00:30]} Rd4 {[%emt 0:00:27]} 0-1

[Event "DVM U14 2024"]
[Site "Heidelberg"]
[Date "2024.12.29"]
[Round "5"]
[White "Nawrath, Lars"]
[Black "Maier, Kalle"]
[Result "0-1"]
[ECO "A45"]
[WhiteElo "1189"]
[BlackElo "1673"]
[Annotator "NA"]
[PlyCount "104"]
[EventDate "2024.12.23"]
[EventType "team-tourn"]
[EventRounds "7"]
[EventCountry "GER"]
[SourceTitle "playchess.com"]
[Source "ChessBase"]
[SourceQuality "1"]
[TimeControl "40/5400+30:1800+30"]

1. d4 {[%emt 0:00:07]} Nf6 {[%emt 0:00:06]} 2. Bf4 {[%emt 0:00:10]} c5 {[%emt 0:00:06]} 3. c3 {[%emt 0:01:20]} Qb6 {[%emt 0:02:34]} 4. Qb3 {[%emt 0:05:51]} Qxb3 {[%emt 0:04:06]} 5. axb3 {[%emt 0:00:08]} Nc6 {[%emt 0:11:02]} 6. e3 {[%emt 0:05:37]} cxd4 {[%emt 0:01:26]} 7. cxd4 {[%emt 0:00:28]} e6 {[%emt 0:01:42]} 8. Nc3 {[%emt 0:03:09]} Bb4 {[%emt 0:00:58]} 9. Bd3 {[%emt 0:04:48]} O-O {[%emt 0:02:05]} 10. Nf3 {[%emt 0:07:07]} Nd5 {[%emt 0:02:04]} 11. Rc1 {[%emt 0:04:49]} Nxf4 {[%emt 0:00:31]} 12. exf4 {[%emt 0:00:08]} b6 {[%emt 0:02:31]} 13. O-O {[%emt 0:02:05]} Bb7 {[%emt 0:01:51]} 14. Nb5 {[%emt 0:05:16]} Rac8 {[%emt 0:06:05]} 15. Nc3 {[%emt 0:03:15]} Na5 {[%emt 0:05:09]} 16. Nd2 {[%emt 0:00:21]} Bd6 {[%emt 0:05:09]} 17. g3 {[%emt 0:04:01]} Nc6 {[%emt 0:04:43]} 18. Ne2 {[%emt 0:05:33]} Rc7 {[%emt 0:04:59]} 19. Nf3 {[%emt 0:14:40]} Rfc8 {[%emt 0:02:07]} 20. Bb1 {[%emt 0:01:43]} Ba6 {[%emt 0:02:10]} 21. Rfe1 {[%emt 0:03:31]} Bxe2 {[%emt 0:01:20]} 22. Rxe2 {[%emt 0:00:58]} Nxd4 {[%emt 0:00:33]} 23. Rxc7 {[%emt 0:05:36]} Nxe2+ {[%emt 0:00:21]} 24. Kf1 {[%emt 0:00:07]} Nxg3+ {[%emt 0:00:25]} 25. hxg3 {[%emt 0:00:30]} Rxc7 {[%emt 0:00:20]} 26. Ke2 {[%emt 0:02:09]} Kf8 {[%emt 0:00:52]} 27. Ne5 {[%emt 0:01:51]} Bxe5 {[%emt 0:00:21]} 28. fxe5 {[%emt 0:00:06]} h6 {[%emt 0:00:21]} 29. f4 {[%emt 0:00:28]} d6 {[%emt 0:00:51]} 30. exd6 {[%emt 0:00:15]} Rd7 {[%emt 0:00:05]} 31. Ke3 {[%emt 0:00:19]} Rxd6 {[%emt 0:00:07]} 32. Bd3 {[%emt 0:00:57]} f5 {[%emt 0:00:30]} 33. Ba6 {[%emt 0:02:39]} Ke7 {[%emt 0:01:05]} 34. Bd3 {[%emt 0:00:30]} Kf6 {[%emt 0:00:27]} 35. Ba6 {[%emt 0:00:20]} g5 {[%emt 0:00:10]} 36. Bc4 {[%emt 0:00:22]} gxf4+ {[%emt 0:00:58]} 37. Kxf4 {[%emt 0:00:10]} e5+ {[%emt 0:00:24]} 38. Ke3 {[%emt 0:00:13]} Kg5 {[%emt 0:00:52]} 39. Be2 {[%emt 0:00:15]} f4+ {[%emt 0:00:18]} 40. gxf4+ {[%emt 0:00:33]} exf4+ {[%emt 0:00:14]} 41. Kf3 {[%emt 0:30:09]} h5 {[%emt 0:30:30]} 42. Kg2 {[%emt 0:00:54]} Rd2 {[%emt 0:00:14]} 43. Kh3 {[%emt 0:00:10]} Rxe2 {[%emt 0:00:19]} 44. b4 {[%emt 0:00:13]} h4 {[%emt 0:00:35]} 45. b5 {[%emt 0:00:07]} Re3+ {[%emt 0:00:44]} 46. Kh2 {[%emt 0:00:15]} Kg4 {[%emt 0:00:20]} 47. b4 {[%emt 0:00:10]} Re2+ {[%emt 0:00:17]} 48. Kg1 {[%emt 0:00:20]} Kg3 {[%emt 0:00:15]} 49. Kf1 {[%emt 0:00:09]} Rg2 {[%emt 0:00:16]} 50. Ke1 {[%emt 0:00:11]} h3 {[%emt 0:00:05]} 51. Kf1 {[%emt 0:00:07]} h2 {[%emt 0:00:07]} 52. Ke1 {[%emt 0:00:03]} h1=R# {[%emt 0:00:08]} 0-1

[Event "DVM U14 2024"]
[Site "Heidelberg"]
[Date "2024.12.29"]
[Round "5"]
[White "Petzold, Gustav"]
[Black "Splitt, Albert"]
[Result "1-0"]
[ECO "C45"]
[WhiteElo "935"]
[BlackElo "1571"]
[Annotator "NA"]
[PlyCount "97"]
[EventDate "2024.12.23"]
[EventType "team-tourn"]
[EventRounds "7"]
[EventCountry "GER"]
[SourceTitle "playchess.com"]
[Source "ChessBase"]
[SourceQuality "1"]
[TimeControl "40/5400+30:1800+30"]

1. e4 {[%emt 0:00:03]} e5 {[%emt 0:00:05]} 2. Nf3 {[%emt 0:00:04]} Nc6 {[%emt 0:00:14]} 3. d4 {[%emt 0:00:08]} exd4 {[%emt 0:00:51]} 4. Nxd4 {[%emt 0:00:10]} Bc5 {[%emt 0:00:18]} 5. Be3 {[%emt 0:00:08]} Qf6 {[%emt 0:00:47]} 6. c3 {[%emt 0:00:08]} Nge7 {[%emt 0:00:51]} 7. Bc4 {[%emt 0:00:07]} Ne5 {[%emt 0:00:47]} 8. Bb3 {[%emt 0:01:22]} a6 {[%emt 0:06:31]} 9. O-O {[%emt 0:06:35]} d6 {[%emt 0:00:28]} 10. Na3 {[%emt 0:06:03]} Qg6 {[%emt 0:04:47]} 11. f3 {[%emt 0:09:34]} Bd7 {[%emt 0:11:51]} 12. Qd2 {[%emt 0:09:02]} h5 {[%emt 0:06:19]} 13. Bd1 {[%emt 0:05:20]} Bxa3 {[%emt 0:13:15]} 14. bxa3 {[%emt 0:00:48]} Nc4 {[%emt 0:01:20]} 15. Qd3 {[%emt 0:01:39]} Nxe3 {[%emt 0:05:58]} 16. Qxe3 {[%emt 0:00:26]} Qf6 {[%emt 0:01:34]} 17. Rb1 {[%emt 0:02:30]} b5 {[%emt 0:02:53]} 18. Re1 {[%emt 0:01:18]} Kf8 {[%emt 0:03:44]} 19. e5 {[%emt 0:01:07]} dxe5 {[%emt 0:01:49]} 20. Qxe5 {[%emt 0:00:13]} Qxe5 {[%emt 0:00:24]} 21. Rxe5 {[%emt 0:00:05]} f6 {[%emt 0:00:39]} 22. Re2 {[%emt 0:00:36]} Nd5 {[%emt 0:00:40]} 23. Rc1 {[%emt 0:01:49]} Nf4 {[%emt 0:00:40]} 24. Re3 {[%emt 0:00:47]} c5 {[%emt 0:00:43]} 25. Ne2 {[%emt 0:01:07]} Nd5 {[%emt 0:00:46]} 26. Rd3 {[%emt 0:00:30]} Bc6 {[%emt 0:01:09]} 27. c4 {[%emt 0:00:08]} Nb6 {[%emt 0:00:52]} 28. Rd6 {[%emt 0:00:39]} Rc8 {[%emt 0:00:49]} 29. cxb5 {[%emt 0:00:12]} axb5 {[%emt 0:00:20]} 30. Rxc5 {[%emt 0:00:09]} Bb7 {[%emt 0:00:50]} 31. Rxc8+ {[%emt 0:00:16]} Nxc8 {[%emt 0:00:09]} 32. Rd8+ {[%emt 0:00:14]} Kf7 {[%emt 0:00:55]} 33. Rxh8 {[%emt 0:00:07]} Nd6 {[%emt 0:00:34]} 34. Rxh5 {[%emt 0:00:17]} Bc6 {[%emt 0:00:13]} 35. Kf2 {[%emt 0:00:51]} Kg6 {[%emt 0:00:10]} 36. Nf4+ {[%emt 0:00:36]} Kf7 {[%emt 0:00:12]} 37. Bb3+ {[%emt 0:00:15]} Ke7 {[%emt 0:00:38]} 38. Rh7 {[%emt 0:00:26]} Ne8 {[%emt 0:00:21]} 39. Bd5 {[%emt 0:01:12]} Bd7 {[%emt 0:00:17]} 40. Ng6+ {[%emt 0:00:45]} Kd8 {[%emt 0:00:34]} 41. Rh4 {[%emt 0:31:08]} Kc7 {[%emt 0:30:23]} 42. Ke3 {[%emt 0:00:11]} Kb6 {[%emt 0:00:14]} 43. Rb4 {[%emt 0:00:28]} Kc5 {[%emt 0:00:10]} 44. Rd4 {[%emt 0:00:25]} Nd6 {[%emt 0:00:16]} 45. g4 {[%emt 0:00:45]} f5 {[%emt 0:00:36]} 46. Bb3 {[%emt 0:00:30]} fxg4 {[%emt 0:00:22]} 47. fxg4 {[%emt 0:00:12]} Be8 {[%emt 0:01:23]} 48. Ne7 {[%emt 0:00:45]} Bd7 {[%emt 0:00:29]} 49. Rd5+ {[%emt 0:00:19]} 1-0